lending/lending_fUSD_20250917
["ID","MTS","AMOUNT","RATE_DAILY","PERIOD"]
[385913105,1758131491729,-2715.75,0.00025386,2]
[385913106,1758131491740,-1131.67,0.00025386,2]
[385913107,1758131491750,-633.79,0.00025386,2]
[385913108,1758131491760,-623.43,0.00025386,2]
[385913109,1758131491770,-3560.1,0.00025386,2]
[385913110,1758131491780,-400.0,0.00025386,2]
[385913111,1758131491790,-400.0,0.00025386,2]
[385913112,1758131491802,-484.81,0.00025386,2]
[385913113,1758131491812,-1076.33,0.00025386,2]
[385913114,1758131491822,-400.0,0.00025386,2]
[385913115,1758131491832,-1315.56,0.00025386,2]
[385913116,1758131491842,-426.46,0.00025386,2]
[385913117,1758131491852,-2358.0,0.00025386,2]
[385913118,1758131491862,-2404.84,0.00025386,2]
[385913119,1758131491873,-4070.35,0.00025386,2]
[385913120,1758131491883,-347.79406665,0.00025387,2]
[385913121,1758131491893,-400.0,0.00025387,2]
[385913122,1758131491903,-400.0,0.00025387,2]
[385913123,1758131491913,-400.0,0.00025387,2]
[385913124,1758131491922,-400.0,0.00025387,2]
[385913125,1758131491932,-412.4,0.00025387,2]
[385913126,1758131491941,-400.0,0.00025387,2]
[385913127,1758131491951,-400.0,0.00025387,2]
[385913128,1758131491960,-400.0,0.00025387,2]
[385913129,1758131491970,-400.0,0.00025387,2]
[385913130,1758131491982,-400.0,0.00025387,2]
[385913131,1758131491991,-293.76833159,0.00025387,2]
[385913132,1758131492001,-525.95,0.00025387,2]
[385913133,1758131492010,-400.0,0.00025387,2]
[385913134,1758131492020,-400.0,0.00025387,2]
[385913135,1758131492030,-400.0,0.00025387,2]
[385913136,1758131492040,-400.0,0.00025387,2]
[385913137,1758131492052,-400.0,0.00025387,2]
[385913138,1758131492063,-400.0,0.00025387,2]
[385913139,1758131492073,-500.0,0.00025387,14]
[385913140,1758131492083,-400.0,0.00025387,2]
[385913141,1758131492092,-400.0,0.00025387,2]
[385913142,1758131492102,-400.0,0.00025387,2]
[385913143,1758131492113,-400.0,0.00025387,2]
[385913144,1758131492123,-400.0,0.00025387,2]
[385913145,1758131492134,-400.0,0.00025387,2]
[385913146,1758131492144,-402.63744872,0.00025387,2]
[385913147,1758131492155,-400.0,0.00025387,2]
[385913148,1758131492165,-400.0,0.00025387,2]
[385913149,1758131492175,-400.0,0.00025387,2]
[385913150,1758131492186,-400.0,0.00025387,2]
[385913151,1758131492196,-400.0,0.00025387,2]
[385913152,1758131492207,-400.0,0.00025387,2]
[385913153,1758131492216,-400.0,0.00025387,2]
[385913154,1758131492226,-400.0,0.00025387,2]
[385913155,1758131492236,-400.0,0.00025387,2]
[385913156,1758131492245,-400.0,0.00025387,2]
[385913157,1758131492255,-400.0,0.00025387,2]
[385913158,1758131492266,-231.91928188,0.00025387,2]
[385913159,1758131492276,-400.0,0.00025387,2]
[385913160,1758131492285,-430.36,0.00025387,2]
[385913161,1758131492296,-588.81,0.00025387,2]
[385913162,1758131492305,-400.0,0.00025387,2]
[385913163,1758131492315,-400.0,0.00025387,2]
[385913164,1758131492324,-400.0,0.00025387,2]
[385913165,1758131492334,-771.14,0.00025387,2]
[385913166,1758131492344,-400.0,0.00025387,2]
[385913167,1758131492354,-400.0,0.00025387,2]
[385913168,1758131492365,-400.0,0.00025387,2]
[385913169,1758131492375,-400.0,0.00025387,2]
[385913170,1758131492386,-400.0,0.00025387,2]
[385913171,1758131492397,-409.09891581,0.00025387,2]
[385913172,1758131492407,-400.0,0.00025387,2]
[385913173,1758131492417,-400.0,0.00025387,2]
[385913174,1758131492427,-500.0,0.00025388,2]
[385913175,1758131492437,-2406.73,0.00025388,2]
[385913176,1758131492447,-943.34,0.00025388,2]
[385913177,1758131492457,-4018.49,0.00025388,2]
[385913178,1758131492467,-701.65,0.00025388,2]
[385913179,1758131492477,-1891.23,0.00025388,2]
[385913180,1758131492487,-1227.0,0.00025389,3]
[385913181,1758131492496,-334.5472959,0.00025394,2]
[385913182,1758131492506,-500.0,0.00025395,2]
[385913183,1758131492517,-300.0,0.00025395,2]
[385913184,1758131492527,-250.0,0.00025395,2]
[385913185,1758131492536,-500.0,0.00025395,2]
[385913186,1758131492547,-500.0,0.00025395,2]
[385913187,1758131492557,-565.0,0.00025395,2]
[385913188,1758131492567,-500.0,0.00025395,2]
[385913189,1758131492577,-3122.0,0.00025395,2]
[385913190,1758131492587,-487.0,0.00025395,2]
[385913191,1758131492597,-233.47566478,0.00025395,2]
[385913192,1758131492607,-500.0,0.00025395,2]
[385913193,1758131492618,-500.0,0.00025395,2]
[385913194,1758131492628,-187.76015971,0.00025395,2]
[385913195,1758131492638,-1235.05,0.00025397,2]
[385913196,1758131492647,-567.49,0.00025397,2]
[385913197,1758131492657,-400.0,0.00025397,2]
[385913198,1758131492667,-1147.59,0.00025397,2]
[385913199,1758131492677,-474.51,0.00025397,2]
[385913200,1758131492686,-400.0,0.00025397,2]
[385913201,1758131492696,-1412.24,0.00025397,2]
[385913202,1758131492706,-706.63,0.00025397,2]
[385913203,1758131492715,-2417.66,0.00025397,2]
[385913204,1758131492724,-524.13,0.00025397,2]
[385913205,1758131492734,-573.54,0.00025397,2]
[385913206,1758131492744,-948.73,0.00025397,2]
[385913207,1758131492753,-2346.09,0.00025397,2]
[385913208,1758131492763,-4760.55,0.00025397,2]
[385913209,1758131492772,-400.0,0.00025397,2]
[385913210,1758131492782,-666.56,0.00025397,2]
[385913211,1758131492791,-1032.93,0.00025397,2]
[385913212,1758131492802,-821.53,0.00025397,2]
[385913213,1758131492811,-967.11,0.00025397,2]
[385913214,1758131492822,-1252.99,0.00025397,2]
[385913215,1758131492832,-4624.33,0.00025397,2]
[385913216,1758131492843,-704.15,0.00025397,2]
[385913217,1758131492853,-400.0,0.00025397,2]
[385913218,1758131492863,-649.13,0.00025397,2]
[385913219,1758131492873,-500.0,0.00025397,2]
[385913220,1758131492883,-620.07,0.00025397,2]
[385913221,1758131492893,-4154.54,0.00025397,2]
[385913222,1758131492903,-715.62,0.00025397,2]
[385913223,1758131492913,-400.0,0.00025397,2]
[385913224,1758131492923,-532.67,0.00025397,2]
[385913225,1758131492932,-472.0,0.00025397,2]
[385913226,1758131492941,-402.2436269,0.00025398,2]
[385913227,1758131492951,-404.18159168,0.00025398,2]
[385913228,1758131492960,-366.5335043,0.00025398,2]
[385913229,1758131492971,-400.0,0.00025398,2]
[385913230,1758131492982,-400.0,0.00025398,2]
[385913231,1758131492993,-400.0,0.00025398,2]
[385913232,1758131493002,-400.0,0.00025398,2]
[385913233,1758131493011,-173.02262191,0.00025398,2]
[385913234,1758131493021,-400.0,0.00025398,2]
[385913235,1758131493031,-402.12159112,0.00025398,2]
[385913236,1758131493041,-400.0,0.00025398,2]
[385913237,1758131493052,-400.0,0.00025398,2]
[385913238,1758131493064,-400.0,0.00025398,2]
[385913239,1758131493075,-400.0,0.00025398,2]
[385913240,1758131493085,-400.0,0.00025398,2]
[385913241,1758131493096,-438.89047143,0.00025398,2]
[385913242,1758131493106,-400.0,0.00025398,2]
[385913243,1758131493116,-400.0,0.00025398,2]
[385913244,1758131493126,-400.0,0.00025398,2]
[385913245,1758131493136,-610.56,0.00025398,2]
[385913246,1758131493146,-400.0,0.00025398,2]
[385913247,1758131493156,-400.0,0.00025398,2]
[385913248,1758131493167,-400.0,0.00025398,2]
[385913249,1758131493177,-400.0,0.00025398,2]
[385913250,1758131493187,-536.68,0.00025398,2]
[385913251,1758131493197,-400.0,0.00025398,2]
[385913252,1758131493207,-953.64,0.00025398,2]
[385913253,1758131493218,-400.0,0.00025398,2]
[385913254,1758131493227,-653.84,0.00025398,2]
[385913255,1758131493237,-432.74,0.00025398,2]
[385913256,1758131493247,-400.0,0.00025398,2]
[385913257,1758131493256,-631.73,0.00025398,2]
[385913258,1758131493266,-1268.84,0.00025398,2]
[385913259,1758131493276,-400.0,0.00025398,2]
[385913260,1758131493286,-400.0,0.00025398,2]
[385913261,1758131493297,-426.24,0.00025398,2]
[385913262,1758131493306,-540.01,0.00025398,2]
[385913263,1758131493317,-646.55,0.00025398,2]
[385913264,1758131493327,-400.0,0.00025398,2]
[385913265,1758131493337,-438.7,0.00025398,2]
[385913266,1758131493347,-400.0,0.00025398,2]
[385913267,1758131493357,-400.0,0.00025398,2]
[385913268,1758131493367,-400.0,0.00025398,2]
[385913269,1758131493378,-400.0,0.00025398,2]
[385913270,1758131493387,-421.94,0.00025398,2]
[385913271,1758131493397,-400.0,0.00025398,2]
[385913272,1758131493407,-766.6,0.00025398,2]
[385913273,1758131493417,-492.34426426,0.00025398,2]
[385913274,1758131493427,-706.89,0.00025398,2]
[385913275,1758131493436,-473.1,0.00025398,2]
[385913276,1758131493446,-400.0,0.00025398,2]
[385913277,1758131493455,-749.15,0.00025398,2]
[385913278,1758131493466,-400.0,0.00025398,2]
[385913279,1758131493475,-656.86,0.00025398,2]
[385913280,1758131493485,-400.0,0.00025398,2]
[385913281,1758131493494,-400.0,0.00025398,2]
[385913282,1758131493503,-400.0,0.00025398,2]
[385913283,1758131493513,-400.0,0.00025398,2]
[385913284,1758131493596,-400.0,0.00025398,2]
[385913285,1758131493607,-410.22,0.00025398,2]
[385913286,1758131493617,-400.0,0.00025398,2]
[385913287,1758131493626,-400.0,0.00025398,2]
[385913288,1758131493636,-508.08,0.00025398,2]
[385913289,1758131493645,-964.24,0.00025398,2]
[385913290,1758131493655,-400.0,0.00025398,2]
[385913291,1758131493664,-466.34,0.00025398,2]
[385913292,1758131493673,-585.64,0.00025398,2]
[385913293,1758131493683,-488.75,0.00025398,2]
[385913294,1758131493693,-400.0,0.00025398,2]
[385913295,1758131493702,-637.19,0.00025398,2]
[385913296,1758131493712,-1125.7,0.00025398,2]
[385913297,1758131493721,-484.92,0.00025398,2]
[385913298,1758131493731,-529.65,0.00025398,2]
[385913299,1758131493741,-400.0,0.00025398,2]
[385913300,1758131493750,-3941.99,0.00025398,2]
[385913301,1758131493760,-401.11,0.00025398,2]
[385913302,1758131493770,-763.34,0.00025398,2]
[385913303,1758131493779,-400.0,0.00025398,2]
[385913304,1758131493789,-400.0,0.00025398,2]
[385913305,1758131493801,-400.0,0.00025398,2]
[385913306,1758131493811,-400.0,0.00025398,2]
[385913307,1758131493821,-400.0,0.00025398,2]
[385913308,1758131493831,-423.2,0.00025398,2]
[385913309,1758131493840,-800.0,0.00025398,2]
[385913310,1758131493850,-591.41,0.00025398,2]
[385913311,1758131493859,-400.0,0.00025398,2]
[385913312,1758131493869,-530.36,0.00025398,2]
[385913313,1758131493879,-664.15,0.00025398,2]
[385913314,1758131493890,-409.34,0.00025398,2]
[385913315,1758131493900,-400.0,0.00025398,2]
[385913316,1758131493909,-400.0,0.00025398,2]
[385913317,1758131493919,-543.58,0.00025398,2]
[385913318,1758131493929,-606.68,0.00025398,2]
[385913319,1758131493939,-528.77,0.00025398,2]
[385913320,1758131493949,-511.5,0.00025398,2]
[385913321,1758131493958,-441.76,0.00025398,2]
[385913322,1758131493968,-405.81,0.00025398,2]
[385913323,1758131493979,-893.58,0.00025398,2]
[385913324,1758131493990,-491.22,0.00025398,2]
[385913325,1758131493999,-610.77,0.00025398,2]
[385913326,1758131494010,-481.72,0.00025398,2]
[385913327,1758131494021,-400.0,0.00025398,2]
[385913328,1758131494031,-600.14,0.00025398,2]
[385913329,1758131494041,-1142.36,0.00025398,2]
[385913330,1758131494053,-400.0,0.00025398,2]
[385913331,1758131494062,-450.52,0.00025398,2]
[385913332,1758131494072,-687.67,0.00025398,2]
[385913333,1758131494083,-603.68,0.00025398,2]
[385913334,1758131494095,-489.45,0.00025398,2]
[385913335,1758131494106,-400.0,0.00025398,2]
[385913336,1758131494117,-688.0,0.00025398,2]
[385913337,1758131494128,-572.92,0.00025398,2]
[385913338,1758131494140,-537.91,0.00025398,2]
[385913339,1758131494151,-550.77,0.00025398,2]
[385913340,1758131494162,-671.22,0.00025398,2]
[385913341,1758131494173,-400.0,0.00025398,2]
[385913342,1758131494184,-605.67,0.00025398,2]
[385913343,1758131494195,-956.98,0.00025398,2]
[385913344,1758131494206,-672.08,0.00025398,2]
[385913345,1758131494216,-400.0,0.00025398,2]
[385913346,1758131494227,-527.21,0.00025398,2]
[385913347,1758131494237,-724.52,0.000254,2]
[385913348,1758131494247,-298.01924116,0.00025408,2]
[385913349,1758131494258,-400.0,0.00025408,2]
[385913350,1758131494268,-400.0,0.00025408,2]
[385913351,1758131494279,-450.83,0.00025408,2]
[385913352,1758131494289,-400.0,0.00025408,2]
[385913353,1758131494303,-808.45,0.00025408,2]
[385913354,1758131494313,-400.0,0.00025408,2]
[385913355,1758131494324,-400.0,0.00025408,2]
[385913356,1758131494335,-460.51,0.00025408,2]
[385913357,1758131494345,-400.0,0.00025408,2]
[385913358,1758131494356,-400.0,0.00025408,2]
[385913359,1758131494366,-671.52,0.00025408,2]
[385913360,1758131494376,-400.0,0.00025408,2]
[385913361,1758131494386,-682.44,0.00025408,2]
[385913362,1758131494396,-748.84,0.00025408,2]
[385913363,1758131494406,-400.0,0.00025408,2]
[385913364,1758131494421,-422.58,0.00025408,2]
[385913365,1758131494431,-916.63,0.00025408,2]
[385913366,1758131494441,-876.13,0.00025408,2]
[385913367,1758131494451,-752.91,0.00025408,2]
[385913368,1758131494461,-400.0,0.00025408,2]
[385913369,1758131494471,-673.53,0.00025408,2]
[385913370,1758131494481,-617.21,0.00025408,2]
[385913371,1758131494492,-404.86818866,0.00025408,2]
[385913372,1758131494502,-552.13,0.00025408,2]
[385913373,1758131494512,-772.46,0.00025408,2]
[385913374,1758131494522,-400.0,0.00025408,2]
[385913375,1758131494532,-694.05,0.00025408,2]
[385913376,1758131494543,-463.11,0.00025408,2]
[385913377,1758131494556,-512.35,0.00025408,2]
[385913378,1758131494566,-406.51,0.00025408,2]
[385913379,1758131494576,-807.12,0.00025408,2]
[385913380,1758131494588,-408.51,0.00025408,2]
[385913381,1758131494598,-400.0,0.00025408,2]
[385913382,1758131494608,-909.64,0.00025408,2]
[385913383,1758131494618,-400.0,0.00025408,2]
[385913384,1758131494627,-487.21,0.00025408,2]
[385913385,1758131494637,-400.0,0.00025408,2]
[385913386,1758131494648,-739.38,0.00025408,2]
[385913387,1758131494657,-400.0,0.00025408,2]
[385913388,1758131494667,-487.4,0.00025408,2]
[385913389,1758131494677,-400.0,0.00025408,2]
[385913390,1758131494687,-400.0,0.00025408,2]
[385913391,1758131494697,-507.67,0.00025408,2]
[385913392,1758131494707,-468.69,0.00025408,2]
[385913393,1758131494717,-465.98,0.00025408,2]
[385913394,1758131494727,-684.11,0.00025408,2]
[385913395,1758131494737,-400.0,0.00025408,2]
[385913396,1758131494747,-400.0,0.00025408,2]
[385913397,1758131494757,-400.0,0.00025408,2]
[385913398,1758131494767,-590.87,0.00025408,2]
[385913399,1758131494777,-490.07,0.00025408,2]
[385913400,1758131494786,-536.96826389,0.00025408,2]
[385913401,1758131494796,-400.0,0.00025408,2]
[385913402,1758131494809,-400.0,0.00025408,2]
[385913403,1758131494819,-400.0,0.00025408,2]
[385913404,1758131494828,-400.0,0.00025408,2]
[385913405,1758131494838,-400.0,0.00025408,2]
[385913406,1758131494849,-210.4774642,0.00025408,2]
[385913407,1758131494859,-400.0,0.00025408,2]
[385913408,1758131494868,-319.05516547,0.00025408,2]
[385913409,1758131494878,-615.91,0.00025408,2]
[385913410,1758131494887,-400.0,0.00025408,2]
[385913411,1758131494898,-400.0,0.00025408,2]
[385913412,1758131494907,-396.47464424,0.00025408,2]
[385913413,1758131494918,-189.90570376,0.00025408,2]
[385913414,1758131494930,-400.0,0.00025408,2]
[385913415,1758131494940,-400.0,0.00025408,2]
[385913416,1758131494950,-460.04,0.00025408,2]
[385913417,1758131494960,-400.0,0.00025408,2]
[385913418,1758131494971,-400.0,0.00025408,2]
[385913419,1758131494988,-444.61,0.00025408,2]
[385913420,1758131494999,-400.0,0.00025408,2]
[385913421,1758131495009,-460.62,0.00025408,2]
[385913422,1758131495019,-400.0,0.00025408,2]
[385913423,1758131495028,-400.0,0.00025408,2]
[385913424,1758131495039,-400.0,0.00025408,2]
[385913425,1758131495049,-438.44,0.00025408,2]
[385913426,1758131495061,-557.59,0.00025408,2]
[385913427,1758131495072,-400.0,0.00025408,2]
[385913428,1758131495081,-400.0,0.00025408,2]
[385913429,1758131495091,-400.0,0.00025408,2]
[385913430,1758131495102,-400.0,0.00025408,2]
[385913431,1758131495112,-631.33,0.00025408,2]
[385913432,1758131495122,-400.0,0.00025408,2]
[385913433,1758131495133,-720.58,0.00025408,2]
[385913434,1758131495143,-400.0,0.00025408,2]
[385913435,1758131495152,-400.0,0.00025408,2]
[385913436,1758131495162,-447.22,0.00025408,2]
[385913437,1758131495172,-357.95963094,0.00025408,2]
[385913438,1758131495182,-456.92,0.00025408,2]
[385913439,1758131495193,-400.0,0.00025408,2]
[385913440,1758131495203,-1127.27,0.00025408,2]
[385913441,1758131495213,-400.0,0.00025408,2]
[385913442,1758131495223,-502.01,0.00025408,2]
[385913443,1758131495233,-867.5,0.00025408,2]
[385913444,1758131495243,-422.92,0.00025408,2]
[385913445,1758131495253,-400.0,0.00025408,2]
[385913446,1758131495263,-502.56,0.00025408,2]
[385913447,1758131495273,-492.25,0.00025408,2]
[385913448,1758131495283,-400.0,0.00025408,2]
[385913449,1758131495293,-400.0,0.00025408,2]
[385913450,1758131495304,-400.0,0.00025408,2]
[385913451,1758131495314,-400.0,0.00025408,2]
[385913452,1758131495325,-671.57,0.00025408,2]
[385913453,1758131495335,-400.0,0.00025408,2]
[385913454,1758131495345,-480.06,0.00025408,2]
[385913455,1758131495355,-815.91,0.00025408,2]
[385913456,1758131495365,-1119.25,0.00025408,2]
[385913457,1758131495375,-400.0,0.00025408,2]
[385913458,1758131495385,-400.0,0.00025408,2]
[385913459,1758131495396,-400.0,0.00025408,2]
[385913460,1758131495407,-928.99,0.00025408,2]
[385913461,1758131495417,-584.06,0.00025408,2]
[385913462,1758131495427,-509.92,0.00025408,2]
[385913463,1758131495437,-400.0,0.00025408,2]
[385913464,1758131495447,-400.0,0.00025408,2]
[385913465,1758131495457,-400.0,0.00025408,2]
[385913466,1758131495468,-1104.61,0.00025408,2]
[385913467,1758131495478,-400.0,0.00025408,2]
[385913468,1758131495489,-501.90279602,0.00025408,2]
[385913469,1758131495499,-422.63,0.00025408,2]
[385913470,1758131495510,-400.0,0.00025408,2]
[385913471,1758131495520,-472.2,0.00025408,2]
[385913472,1758131495531,-400.0,0.00025408,2]
[385913473,1758131495542,-626.4,0.00025408,2]
[385913474,1758131495553,-400.0,0.00025408,2]
[385913475,1758131495563,-400.0,0.00025408,2]
[385913476,1758131495573,-400.0,0.00025408,2]
[385913477,1758131495583,-400.0,0.00025408,2]
[385913478,1758131495594,-400.0,0.00025408,2]
[385913479,1758131495604,-400.0,0.00025408,2]
[385913480,1758131495614,-629.4,0.00025408,2]
[385913481,1758131495625,-457.35,0.00025408,2]
[385913482,1758131495635,-771.83,0.00025408,2]
[385913483,1758131495646,-425.26036846,0.00025408,2]
[385913484,1758131495656,-446.12,0.00025408,2]
[385913485,1758131495666,-412.55060067,0.00025408,2]
[385913486,1758131495676,-400.0,0.00025408,2]
[385913487,1758131495686,-400.0,0.00025408,2]
[385913488,1758131495697,-485.9,0.00025408,2]
[385913489,1758131495707,-400.0,0.00025408,2]
[385913490,1758131495718,-502.41,0.00025408,2]
[385913491,1758131495728,-575.82,0.00025408,2]
[385913492,1758131495738,-572.43,0.00025408,2]
[385913493,1758131495748,-400.0,0.00025408,2]
[385913494,1758131495762,-577.21,0.00025408,2]
[385913495,1758131495775,-400.0,0.00025408,2]
[385913496,1758131495785,-400.0,0.00025408,2]
[385913497,1758131495796,-609.47,0.00025408,2]
[385913498,1758131495809,-697.32,0.00025408,2]
[385913499,1758131495819,-400.0,0.00025408,2]
[385913500,1758131495830,-534.9,0.00025408,2]
[385913501,1758131495840,-791.84,0.00025408,2]
[385913502,1758131495851,-631.56,0.00025408,2]
[385913503,1758131495861,-668.11,0.00025408,2]
[385913504,1758131495871,-400.0,0.00025408,2]
[385913505,1758131495881,-400.0,0.00025408,2]
[385913506,1758131495892,-445.18,0.00025408,2]
[385913507,1758131495902,-400.0,0.00025408,2]
[385913508,1758131495912,-400.0,0.00025408,2]
[385913509,1758131495922,-435.28,0.00025408,2]
[385913510,1758131495932,-589.94,0.00025408,2]
[385913511,1758131495943,-351.27223296,0.00025408,2]
[385913512,1758131495953,-400.0,0.00025408,2]
[385913513,1758131495964,-408.88,0.00025408,2]
[385913514,1758131495975,-400.0,0.00025408,2]
[385913515,1758131495991,-834.3,0.00025408,2]
[385913516,1758131496001,-400.0,0.00025408,2]
[385913517,1758131496011,-400.0,0.00025408,2]
[385913518,1758131496022,-647.06,0.00025408,2]
[385913519,1758131496033,-400.0,0.00025408,2]
[385913520,1758131496043,-400.0,0.00025408,2]
[385913521,1758131496054,-1362.11,0.00025408,2]
[385913522,1758131496064,-400.0,0.00025408,2]
[385913523,1758131496074,-400.0,0.00025408,2]
[385913524,1758131496084,-3004.05,0.00025408,2]
[385913525,1758131496094,-400.0,0.00025408,2]
[385913526,1758131496104,-623.62,0.00025408,2]
[385913527,1758131496114,-652.72,0.00025408,2]
[385913528,1758131496124,-400.0,0.00025408,2]
[385913529,1758131496135,-400.0,0.00025408,2]
[385913530,1758131496146,-400.0,0.00025408,2]
[385913531,1758131496156,-441.69,0.00025408,2]
[385913532,1758131496166,-440.33,0.00025408,2]
[385913533,1758131496176,-617.06,0.00025408,2]
[385913534,1758131496186,-400.0,0.00025408,2]
[385913535,1758131496195,-783.59,0.00025408,2]
[385913536,1758131496206,-400.0,0.00025408,2]
[385913537,1758131496216,-529.36,0.00025408,2]
[385913538,1758131496226,-851.11,0.00025408,2]
[385913539,1758131496237,-400.0,0.00025408,2]
[385913540,1758131496247,-850.01,0.00025408,2]
[385913541,1758131496423,-2019.89,0.00025408,2]
[385913542,1758131496433,-610.69,0.00025408,2]
[385913543,1758131496447,-400.0,0.00025408,2]
[385913544,1758131496460,-879.71,0.00025408,2]
[385913545,1758131496470,-280.41576252,0.00025408,2]
[385913546,1758131496480,-400.0,0.00025408,2]
[385913547,1758131496490,-400.0,0.00025408,2]
[385913548,1758131496499,-400.0,0.00025408,2]
[385913549,1758131496509,-1077.56,0.00025408,2]
[385913550,1758131496519,-1151.34,0.00025408,2]
[385913551,1758131496528,-563.26,0.00025408,2]
[385913552,1758131496538,-400.0,0.00025408,2]
[385913553,1758131496548,-662.04,0.00025408,2]
[385913554,1758131496559,-770.48,0.00025408,2]
[385913555,1758131496569,-575.67,0.00025408,2]
[385913556,1758131496578,-566.71,0.00025408,2]
[385913557,1758131496588,-858.88,0.00025408,2]
[385913558,1758131496597,-400.0,0.00025408,2]
[385913559,1758131496607,-400.0,0.00025408,2]
[385913560,1758131496617,-400.0,0.00025408,2]
[385913561,1758131496627,-500.0,0.00025408,2]
[385913562,1758131496636,-500.0,0.00025409,2]
[385913563,1758131496645,-500.0,0.00025409,2]
[385913564,1758131496654,-400.0,0.00025409,2]
[385913565,1758131496664,-417.24219897,0.00025409,2]
[385913566,1758131496673,-400.0,0.00025409,2]
[385913567,1758131496683,-400.0,0.00025409,2]
[385913568,1758131496692,-400.0,0.00025409,2]
[385913569,1758131496702,-400.0,0.00025409,2]
[385913570,1758131496711,-400.0,0.00025409,2]
[385913571,1758131496721,-400.0,0.00025409,2]
[385913572,1758131496731,-400.0,0.00025409,2]
[385913573,1758131496741,-400.0,0.00025409,2]
[385913574,1758131496750,-400.0,0.00025409,2]
[385913575,1758131496760,-400.0,0.00025409,2]
[385913576,1758131496770,-400.0,0.00025409,2]
[385913577,1758131496779,-1177.74,0.00025409,2]
[385913578,1758131496789,-400.0,0.00025409,2]
[385913579,1758131496799,-400.0,0.00025409,2]
[385913580,1758131496809,-441.01835677,0.00025409,2]
[385913581,1758131496820,-400.0,0.00025409,2]
[385913582,1758131496830,-400.0,0.00025409,2]
[385913583,1758131496839,-400.0,0.00025409,2]
[385913584,1758131496849,-409.6217945,0.00025409,2]
[385913585,1758131496859,-470.46259232,0.00025409,2]
[385913586,1758131496868,-400.0,0.00025409,2]
[385913587,1758131496877,-400.0,0.00025409,2]
[385913588,1758131496886,-400.0,0.00025409,2]
[385913589,1758131496896,-405.51199315,0.00025409,2]
[385913590,1758131496906,-525.93,0.00025409,2]
[385913591,1758131496915,-400.0,0.00025409,2]
[385913592,1758131496924,-406.03,0.00025409,2]
[385913593,1758131496933,-400.0,0.00025409,2]
[385913594,1758131496942,-599.36,0.00025409,2]
[385913595,1758131496952,-400.0,0.00025409,2]
[385913596,1758131496961,-449.26140785,0.00025409,2]
[385913597,1758131496970,-400.0,0.00025409,2]
[385913598,1758131496980,-412.0173721,0.00025409,2]
[385913599,1758131496995,-400.0,0.00025409,2]
[385913600,1758131497005,-400.0,0.00025409,2]
[385913601,1758131497014,-400.0,0.00025409,2]
[385913602,1758131497024,-400.0,0.00025409,2]
[385913603,1758131497034,-400.0,0.00025409,2]
[385913604,1758131497044,-400.0,0.00025409,2]